fUSD/lending_fUSD_20250304
["ID","MTS","AMOUNT","RATE_DAILY","PERIOD"]
[355340150,1741068641078,-500.0,0.00012586,2]
[355340152,1741068641088,-521.94,0.00012586,2]
[355340154,1741068641097,-500.0,0.00012586,2]
[355340156,1741068641107,-500.0,0.00012586,2]
[355340158,1741068641116,-2740.94,0.00012586,2]
[355340160,1741068641125,-513.74213284,0.00012586,2]
[355340162,1741068641135,-1715.67,0.00012586,2]
[355340164,1741068641144,-1074.11,0.00012586,2]
[355340166,1741068641154,-500.0,0.00012586,2]
[355340168,1741068641163,-500.0,0.00012586,2]
[355340170,1741068641174,-1982.96,0.00012586,2]
[355340172,1741068641183,-500.0,0.00012586,2]
[355340174,1741068641192,-500.0,0.00012586,2]
[355340176,1741068641202,-500.0,0.00012586,2]
[355340178,1741068641211,-3640.26,0.00012586,2]
[355340180,1741068641220,-1102.0,0.00012586,2]
[355340182,1741068641230,-500.0,0.00012586,2]
[355340184,1741068641239,-500.0,0.00012586,2]
[355340186,1741068641249,-500.0,0.00012586,2]
[355340188,1741068641258,-500.0,0.00012586,2]
[355340190,1741068641267,-2904.06,0.00012586,2]
[355340192,1741068641276,-500.0,0.00012586,2]
[355340194,1741068641286,-500.0,0.00012586,2]
[355340196,1741068641297,-746.08,0.00012586,2]
[355340198,1741068641306,-500.0,0.00012586,2]
[355340200,1741068641315,-500.0,0.00012586,2]
[355340202,1741068641324,-500.0,0.00012586,2]
[355340204,1741068641334,-500.0,0.00012586,2]
[355340206,1741068641343,-500.0,0.00012586,2]
[355340208,1741068641352,-500.0,0.00012586,2]
[355340210,1741068641362,-500.0,0.00012586,2]
[355340212,1741068641372,-500.0,0.00012586,2]
[355340214,1741068641382,-500.0,0.00012586,2]
[355340216,1741068641392,-500.0,0.00012586,2]
[355340218,1741068641401,-500.0,0.00012586,2]
[355340220,1741068641411,-500.0,0.00012586,2]
[355340222,1741068641423,-408.23816608,0.00012586,2]
[355340224,1741068641432,-500.0,0.00012586,2]
[355340226,1741068641441,-983.86,0.00012586,2]
[355340228,1741068641451,-4530.42,0.00012586,2]
[355340230,1741068641460,-3158.31,0.00012586,2]
[355340232,1741068641470,-558.5,0.00012586,2]
[355340234,1741068641479,-500.0,0.00012586,2]
[355340236,1741068641488,-324.65975606,0.00012587,2]
[355340238,1741068641498,-1385612.40084161,0.00012587,2]
[355340241,1741068641516,-1778.50423484,0.00012587,2]
[355340466,1741068643386,-500.0,0.00012585,2]
[355340468,1741068643395,-500.0,0.00012585,2]
[355340470,1741068643405,-156.3,0.00012585,2]
[355340483,1741068643519,-343.7,0.00012585,2]
[355340485,1741068643530,-500.0,0.00012585,2]
[355340487,1741068643539,-500.0,0.00012585,2]
[355340489,1741068643549,-500.0,0.00012585,2]
[355340491,1741068643558,-500.0,0.00012585,2]
[355340493,1741068643567,-500.0,0.00012585,2]
[355340495,1741068643577,-500.0,0.00012585,2]
[355340497,1741068643587,-500.0,0.00012585,2]
[355340499,1741068643596,-500.0,0.00012585,2]
[355340501,1741068643606,-500.0,0.00012586,2]
[355340503,1741068643615,-500.0,0.00012586,2]
[355340505,1741068643625,-1814.65521303,0.00012587,2]
[355340507,1741068643637,-181168.41511846,0.00012587,2]
[355340509,1741068643648,-27336.76277447,0.00012587,2]
[355340546,1741068644005,-405.405,0.00012586,2]
[355340559,1741068644113,-103.83824944,0.00012586,2]
[355340561,1741068644123,-500.0,0.00012586,2]
[355340562,1741068644134,-896.49334934,0.00012587,2]
[355340566,1741068644158,-502200.47049051,0.00012587,2]
[355340568,1741068644169,-2376949.67365166,0.00012587,2]
[355340570,1741068644180,-495.68719811,0.00012587,2]
[355340580,1741068644268,-716.983,0.00012587,2]
[355340588,1741068644329,-4383994.98875707,0.00012587,2]
[355340590,1741068644347,-1907.84659183,0.00012587,2]
[355340592,1741068644359,-408.2962996,0.00012587,2]
[355340594,1741068644371,-10475.18820384,0.00012587,2]
[355340597,1741068644389,-222.8057512,0.00012586,2]
[355340599,1741068644399,-21226.12557652,0.00012587,2]
[355340763,1741068646135,-500.0,0.00012486,2]
[355340765,1741068646144,-255.2,0.00012586,2]
[355340796,1741068646449,-2533.79817843,0.00012586,2]
[355340816,1741068646626,-562.21182157,0.00012586,2]
[355340818,1741068646639,-516.37523928,0.00012586,2]
[355340820,1741068646649,-4901.22,0.00012586,2]
[355340822,1741068646659,-6963.77427565,0.00012587,2]
[355340824,1741068646672,-601.545,0.00012587,2]
[355340826,1741068646683,-169065.26417436,0.00012587,2]
[355340833,1741068646743,-21718.40537476,0.00012587,2]
[355340835,1741068646755,-1065.83165509,0.00012587,2]
[355340840,1741068646792,-796.37956521,0.00012587,2]
[355340842,1741068646804,-1008.34816,0.00012587,2]
[355340844,1741068646817,-1433.77047196,0.00012587,2]
[355341605,1741069134017,-550.0,0.00011,2]
[355341606,1741069134040,-150.0,0.00011292,2]
[355341607,1741069134061,-550.0,0.00011292,2]
[355341608,1741069134083,-150.0,0.00011509,2]
[355341609,1741069134104,-3989.37455074,0.00011584,2]
[355341610,1741069134124,-158.71,0.00011584,2]
[355341611,1741069134145,-724.98,0.00011617,2]
[355341612,1741069134166,-370.37,0.00011665,2]
[355341613,1741069134186,-2000.0,0.00011677,2]
[355341614,1741069134206,-1000.0,0.0001177,2]
[355341615,1741069134227,-1198.89,0.00011806,2]
[355341616,1741069134251,-167.45,0.00011848,2]
[355341617,1741069134271,-150.0,0.00011978,2]
[355341618,1741069144308,300.0,0.00011585,2]
[355341619,1741069171512,-150.0,0.000121,2]
[355341620,1741069171535,-550.0,0.000121,2]
[355341621,1741069171556,-150.99,0.00012246,2]
[355341622,1741069171577,-1571.4481,0.00012484,2]
[355341623,1741069171599,-1117.78734926,0.00012484,2]
[355341624,1741069264095,222.0,0.00020011,120]
[355341625,1741069342563,536.14,9.623e-05,2]
[355341645,1741069742534,6958.316636,0.0001,2]
[355341650,1741069784269,-739.94,0.00010959,2]
[355341651,1741069784314,-266.5795311,0.00011048,2]
[355341652,1741069784358,-2000.0,0.00011076,2]
[355341653,1741069784405,-254.67,0.0001109,2]
[355341654,1741069784449,-1852.42,0.00011133,2]
[355341655,1741069784494,-173.97,0.00011148,2]
[355341656,1741069784538,-819.29,0.00011148,2]
[355341657,1741069784586,-550.0,0.00011181,2]
[355341658,1741069784635,-36.45229126,0.00011306,2]
[355341659,1741069784699,-187.17770874,0.00011306,2]
[355341660,1741069784745,-150.0,0.00011321,7]
[355341661,1741069784792,-550.0,0.0001136,2]
[355341662,1741069784839,-223.63,0.00011366,2]
[355341663,1741069784886,-538.28,0.00011403,2]
[355341664,1741069784938,-223.63,0.00011425,2]
[355341665,1741069784985,-150.0,0.00011474,2]
[355341666,1741069785038,-223.63,0.00011485,2]
[355341667,1741069785088,-1872.18045453,0.00011512,2]
[355341668,1741069808654,-127.81954547,0.00011512,2]
[355341669,1741069808701,-223.63,0.00011544,2]
[355341670,1741069808753,-200.0,0.00011551,2]
[355341671,1741069808815,-223.63,0.00011604,2]
[355341672,1741069808878,-223.63,0.00011663,2]
[355341673,1741069808932,-150.0,0.00011719,2]
[355341674,1741069808983,-223.63,0.00011723,2]
[355341675,1741069809035,-440.21,0.00011778,2]
[355341676,1741069809084,-223.63,0.00011783,2]
[355341677,1741069809133,-223.63,0.00011842,2]
[355341678,1741069809179,-300.0,0.00011886,2]
[355341679,1741069809227,-536.14,0.00011887,2]
[355341680,1741069809273,-499.99,0.00011887,2]
[355341681,1741069809320,-3313.6192766,0.00011887,2]
[355341682,1741069809380,-3454.02881783,0.00011887,2]
[355341720,1741069832130,-704.64009095,0.00011887,2]
[355341721,1741069832434,-530.78,0.00011338,2]
[355341722,1741069832443,-150.8168828,0.00011887,2]
[355341822,1741069837924,-307.61330121,0.00011887,2]
[355341823,1741069838014,-2069.27163061,0.00011887,2]
[355341824,1741069838024,-223.63,0.00011902,2]
[355341825,1741069838033,-223.63,0.00011961,2]
[355341826,1741069838227,-400.0,0.00012,4]
[355341827,1741069838237,-223.63,0.00012021,2]
[355341828,1741069838246,-150.0,0.00012043,2]
[355341829,1741069838256,-90.07146361,0.00012044,2]
[355341830,1741069838268,-59.92853639,0.00012044,2]
[355341831,1741069838277,-150.99,0.00012044,2]
[355341832,1741069838287,-1224.33597505,0.00012044,2]
[355341835,1741069838303,-476.81295156,0.00012044,2]
[355342039,1741069840185,-947.72946,0.00012044,2]
[355342067,1741069840454,-962.48574447,0.00012044,2]
[355342071,1741069840478,-2537.10586892,0.00012044,2]
[355342073,1741069840488,-999.99,0.00012044,2]
[355342075,1741069840498,-1118.73,0.00012044,2]
[355342077,1741069840507,-9999.99,0.00012044,2]
[355342079,1741069840517,-550.0,0.00012055,2]
[355342081,1741069840526,-223.63,0.0001208,2]
[355342083,1741069840536,-19683.89,0.00012087,2]
[355342085,1741069840545,-800.0,0.000121,4]
[355342087,1741069840554,-223.63,0.0001214,2]
[355342088,1741069840564,-223.63,0.00012199,2]
[355342090,1741069840573,-1300.0,0.000122,4]
[355342092,1741069840583,-593.0,0.00012219,2]
[355342094,1741069840593,-338.85838314,0.00012236,2]
[355342096,1741069840602,-223.63,0.00012259,2]
[355342098,1741069840611,-20042.84031205,0.00012287,2]
[355342100,1741069840621,-1014.42,0.000123,2]
[355342102,1741069840631,-1700.0,0.000123,4]
[355342104,1741069840640,-2419.86124954,0.00012318,2]
[355342106,1741069840649,-2419.86124954,0.00012318,2]
[355342108,1741069840659,-223.63,0.00012318,2]
[355342110,1741069840671,-11349.81174448,0.00012343,2]
[355342112,1741069840680,-223.63,0.00012378,2]
[355342114,1741069840689,-993.4244,0.00012386,2]
[355342116,1741069840698,-222.9919,0.00012386,2]
[355342118,1741069840708,-313.6098,0.00012386,2]
[355342120,1741069840717,-2049.3753,0.00012386,2]
[355342122,1741069840727,-1000.0,0.00012387,2]
[355342124,1741069840736,-2200.0,0.000124,4]
[355342126,1741069840745,-223.63,0.00012437,2]
[355342127,1741069840754,-6467.44,0.0001247,2]
[355342129,1741069840763,-322.14497255,0.00012483,2]
[355342131,1741069840773,-1097.16697903,0.00012485,2]
[355342133,1741069840782,-2333.497,0.00012485,2]
[355342135,1741069840791,-232.07260876,0.00012485,2]
[355342137,1741069840800,-458.45055887,0.00012486,2]
[355342139,1741069840810,-1833.01,0.00012486,2]
[355342141,1741069840819,-500.0,0.00012486,2]
[355342143,1741069840828,-500.0,0.00012486,2]
[355342145,1741069840838,-500.0,0.00012486,2]
[355342147,1741069840847,-1612.31,0.00012486,2]
[355342149,1741069840856,-1070.6,0.00012486,2]
[355342151,1741069840866,-500.0,0.00012486,2]
[355342153,1741069840875,-1309.28,0.00012486,2]
[355342155,1741069840884,-10518.8352418,0.00012486,2]
[355342157,1741069840894,-908.06,0.00012486,2]
[355342159,1741069840904,-1338.37,0.00012486,2]
[355342161,1741069840914,-503.04603488,0.00012486,2]
[355342163,1741069840929,-500.0,0.00012486,2]
[355342165,1741069840938,-1279.21,0.00012486,2]
[355342167,1741069840947,-511.78867461,0.00012486,2]
[355342169,1741069840957,-579.12,0.00012486,2]
[355342171,1741069840967,-1650.61,0.00012486,2]
[355342173,1741069840976,-1343.95,0.00012486,2]
[355342175,1741069840986,-500.0,0.00012486,2]
[355342177,1741069840996,-1966.8,0.00012486,2]
[355342179,1741069841005,-1044.33,0.00012486,2]
[355342181,1741069841015,-500.0,0.00012486,2]
[355342182,1741069841025,-896.54,0.00012486,2]
[355342184,1741069841034,-513.56485324,0.00012486,2]
[355342186,1741069841044,-1119.46,0.00012486,2]
[355342188,1741069841053,-500.0,0.00012486,2]
[355342189,1741069841062,-1240.56,0.00012486,2]
[355342190,1741069841071,-657.62,0.00012486,2]
[355342191,1741069841080,-1161.14,0.00012486,2]
[355342192,1741069841091,-500.0,0.00012486,2]
[355342193,1741069841104,-963.22,0.00012486,2]
[355342194,1741069841113,-500.0,0.00012486,2]
[355342195,1741069841122,-767.93,0.00012486,2]
[355342196,1741069841131,-924.72,0.00012486,2]
[355342197,1741069841142,-1357.99,0.00012486,2]
[355342198,1741069841153,-500.0,0.00012486,2]
[355342199,1741069841163,-1681.82,0.00012486,2]
[355342200,1741069841177,-500.0,0.00012486,2]
[355342201,1741069841187,-981.89,0.00012486,2]
[355342202,1741069841196,-500.0,0.00012486,2]
[355342203,1741069841206,-500.0,0.00012486,2]
[355342204,1741069841215,-1015.03,0.00012486,2]
[355342205,1741069841225,-1580.75,0.00012486,2]
[355342206,1741069841235,-666.85,0.00012486,2]
[355342207,1741069841244,-1298.3,0.00012486,2]
[355342208,1741069841253,-1401.76,0.00012486,2]
[355342209,1741069841263,-500.0,0.00012486,2]
[355342210,1741069841272,-506.41475833,0.00012486,2]
[355342212,1741069841281,-1197.12,0.00012486,2]
[355342214,1741069841290,-1122.88,0.00012486,2]
[355342216,1741069841299,-696.55,0.00012486,2]
[355342217,1741069841309,-505.9031886,0.00012486,2]
[355342220,1741069841320,-739.65,0.00012486,2]
[355342222,1741069841329,-500.0,0.00012486,2]
[355342224,1741069841339,-700.28,0.00012486,2]
[355342226,1741069841349,-1012.38,0.00012486,2]
[355342228,1741069841359,-500.0,0.00012486,2]
[355342230,1741069841369,-1029.9,0.00012486,2]
[355342232,1741069841378,-500.0,0.00012486,2]
[355342234,1741069841388,-500.0,0.00012486,2]
[355342236,1741069841398,-948.0,0.00012486,2]
[355342238,1741069841407,-1367.56,0.00012486,2]
[355342240,1741069841420,-500.0,0.00012486,2]
[355342241,1741069841434,-1308.11,0.00012486,2]
[355342243,1741069841444,-530.02,0.00012486,2]
[355342245,1741069841454,-711.68,0.00012486,2]
[355342247,1741069841463,-1506.57,0.00012486,2]
[355342249,1741069841473,-501.01499409,0.00012486,2]
[355342252,1741069841482,-2028.78,0.00012486,2]
[355342254,1741069841492,-3188.4,0.00012486,2]
[355342256,1741069841502,-500.0,0.00012486,2]
[355342258,1741069841511,-500.0,0.00012486,2]
[355342260,1741069841521,-500.0,0.00012486,2]
[355342262,1741069841530,-1464.65,0.00012486,2]
[355342264,1741069841539,-1452.92,0.00012486,2]
[355342266,1741069841549,-500.0,0.00012486,2]
[355342268,1741069841559,-2012.36,0.00012486,2]
[355342270,1741069841569,-2510.25,0.00012486,2]
[355342272,1741069841578,-1966.68,0.00012486,2]
[355342274,1741069841588,-500.0,0.00012486,2]
[355342276,1741069841598,-500.0,0.00012486,2]
[355342278,1741069841609,-742.84,0.00012486,2]
[355342280,1741069841619,-2912.53,0.00012486,2]
[355342282,1741069841629,-987.02,0.00012486,2]
[355342284,1741069841639,-500.0,0.00012486,2]
[355342286,1741069841648,-3905.59,0.00012486,2]
[355342288,1741069841658,-1000.0,0.00012486,2]
[355342290,1741069841669,-1000.0,0.00012486,2]
[355342292,1741069841681,-1000.0,0.00012486,2]
[355342294,1741069841691,-1000.0,0.00012486,2]
[355342296,1741069841700,-1000.0,0.00012486,2]
[355342297,1741069841709,-1000.0,0.00012486,2]
[355342299,1741069841718,-1000.0,0.00012486,2]
[355342301,1741069841728,-1000.0,0.00012486,2]
[355342304,1741069841737,-1000.0,0.00012486,2]
[355342306,1741069841746,-1000.0,0.00012486,2]
[355342307,1741069841756,-1000.0,0.00012486,2]
[355342309,1741069841766,-1000.0,0.00012486,2]
[355342311,1741069841775,-1000.0,0.00012486,2]
[355342313,1741069841784,-1000.0,0.00012486,2]
[355342315,1741069841794,-1000.0,0.00012486,2]
[355342317,1741069841804,-1000.0,0.00012486,2]
[355342319,1741069841813,-1000.0,0.00012486,2]
[355342321,1741069841824,-1000.0,0.00012486,2]
[355342324,1741069841833,-1000.0,0.00012486,2]
[355342326,1741069841843,-1000.0,0.00012486,2]
[355342328,1741069841853,-1000.0,0.00012486,2]
[355342329,1741069841862,-1000.0,0.00012486,2]
[355342331,1741069841872,-1000.0,0.00012486,2]
[355342333,1741069841881,-1000.0,0.00012486,2]
[355342336,1741069841891,-265.0,0.00012486,2]
[355342337,1741069841900,-2555.197,0.00012486,2]
[355342339,1741069841910,-170.6256772,0.00012487,2]
[355342341,1741069841921,-400.0,0.000125,4]
[355342361,1741069842104,-1000.0,0.000125,2]
[355342363,1741069842115,-160.23079243,0.00012573,2]
[355342365,1741069842125,-500.0,0.00012573,2]
[355342367,1741069842136,-1804.03,0.00012581,2]
[355342369,1741069842146,-2013.46,0.00012581,2]
[355342371,1741069842155,-1766.55,0.00012581,2]
[355342373,1741069842166,-3839.33,0.00012581,2]
[355342375,1741069842180,-1318.95,0.00012581,2]
[355342377,1741069842190,-2884.93,0.00012581,2]
[355342379,1741069842200,-500.0,0.00012581,2]
[355342381,1741069842210,-2125.07,0.00012581,2]
[355342383,1741069842219,-500.0,0.00012581,2]
[355342385,1741069842228,-500.0,0.00012581,2]
[355342387,1741069842238,-983.09,0.00012581,2]
[355342389,1741069842247,-816.53,0.00012581,2]
[355342391,1741069842257,-3462.1,0.00012581,2]
[355342393,1741069842267,-1872.51,0.00012581,2]
[355342395,1741069842276,-2779.53,0.00012581,2]
[355342397,1741069842285,-742.9,0.00012581,2]
[355342399,1741069842295,-3569.52,0.00012581,2]
[355342400,1741069842304,-3605.16,0.00012581,2]
[355342402,1741069842313,-500.0,0.00012581,2]
[355342405,1741069842323,-2668.43,0.00012581,2]
[355342407,1741069842332,-500.0,0.00012581,2]
[355342409,1741069842341,-2116.44,0.00012581,2]
[355342411,1741069842351,-511.02718804,0.00012581,2]
[355342413,1741069842360,-676.98,0.00012581,2]
[355342414,1741069842370,-500.0,0.00012581,2]
[355342416,1741069842379,-501.53282014,0.00012581,2]
[355342418,1741069842388,-1352.17,0.00012581,2]
[355342420,1741069842397,-2813.9,0.00012581,2]
[355342422,1741069842407,-500.0,0.00012581,2]
[355342424,1741069842415,-1506.14,0.00012581,2]
[355342426,1741069842428,-500.0,0.00012581,2]
[355342428,1741069842438,-1968.13,0.00012581,2]
[355342430,1741069842447,-503.32968506,0.00012581,2]
[355342432,1741069842456,-502.3094284,0.00012581,2]
[355342434,1741069842466,-500.0,0.00012581,2]
[355342436,1741069842475,-2910.47,0.00012581,2]
[355342438,1741069842484,-500.0,0.00012581,2]
[355342440,1741069842493,-567.11,0.00012581,2]
[355342442,1741069842502,-727.51,0.00012582,2]
[355342444,1741069842512,-8668.35,0.00012582,2]
[355342447,1741069842521,-924.83,0.00012582,2]
[355342448,1741069842531,-1276.41,0.00012582,2]
[355342451,1741069842541,-829.11,0.00012582,2]
[355342453,1741069842550,-1949.38,0.00012582,2]
[355342454,1741069842559,-1099.68,0.00012582,2]
[355342456,1741069842569,-3690.76,0.00012582,2]
[355342458,1741069842578,-2952.52,0.00012582,2]
[355342460,1741069842588,-3142.25,0.00012582,2]
[355342462,1741069842597,-2907.42,0.00012582,2]
[355342464,1741069842606,-688.67,0.00012582,2]
[355342466,1741069842615,-6026.87,0.00012582,2]
[355342468,1741069842624,-1250.64,0.00012582,2]
[355342470,1741069842633,-2508.53,0.00012582,2]
[355342472,1741069842642,-3154.55,0.00012582,2]
[355342474,1741069842651,-2087.27,0.00012582,2]
[355342476,1741069842660,-4711.97,0.00012582,2]
[355342478,1741069842671,-3359.08,0.00012582,2]
[355342480,1741069842680,-3783.55,0.00012582,2]
[355342482,1741069842689,-4335.01,0.00012582,2]
[355342484,1741069842699,-6263.34,0.00012582,2]
[355342486,1741069842708,-3464.48,0.00012582,2]
[355342488,1741069842718,-3482.19,0.00012582,2]
[355342490,1741069842728,-14274.31,0.00012582,2]
[355342492,1741069842737,-500.0,0.00012582,2]
[355342494,1741069842746,-500.0,0.00012582,2]
[355342496,1741069842756,-2486.85,0.00012582,2]
[355342498,1741069842765,-1900.34,0.00012582,2]
[355342500,1741069842775,-3026.71,0.00012582,2]
[355342502,1741069842784,-500.0,0.00012583,2]
[355342504,1741069842793,-502.6129454,0.00012583,2]
[355342506,1741069842803,-500.0,0.00012583,2]
[355342508,1741069842812,-500.0,0.00012583,2]
[355342510,1741069842821,-500.0,0.00012583,2]
[355342512,1741069842831,-647.3344165,0.00012583,2]
[355342514,1741069842840,-500.0,0.00012583,2]
[355342516,1741069842849,-1107.81,0.00012583,2]
[355342519,1741069842859,-500.0,0.00012583,2]
[355342521,1741069842868,-500.0,0.00012583,2]
[355342523,1741069842877,-505.11474053,0.00012583,2]
[355342525,1741069842886,-500.0,0.00012583,2]
[355342527,1741069842895,-500.0,0.00012583,2]
[355342529,1741069842905,-1248.55,0.00012583,2]
[355342531,1741069842914,-492.00013696,0.00012583,2]
[355342533,1741069842924,-500.0,0.00012583,2]
[355342535,1741069842934,-500.0,0.00012583,2]
[355342537,1741069842945,-581.71,0.00012583,2]
[355342539,1741069842954,-500.0,0.00012583,2]
[355342541,1741069842963,-501.55729622,0.00012583,2]
[355342543,1741069842972,-500.0,0.00012583,2]
[355342545,1741069842982,-500.0,0.00012583,2]
[355342547,1741069842992,-1662.08,0.00012583,2]
[355342549,1741069843002,-501.53363928,0.00012583,2]
[355342551,1741069843012,-505.34027584,0.00012583,2]
[355342553,1741069843021,-1152.01,0.00012583,2]
[355342555,1741069843031,-500.0,0.00012583,2]
[355342557,1741069843040,-186.79775661,0.00012583,2]
[355342559,1741069843050,-500.0,0.00012583,2]
[355342561,1741069843059,-1585.12,0.00012583,2]
[355342563,1741069843068,-500.0,0.00012583,2]
[355342565,1741069843078,-500.0,0.00012583,2]
[355342567,1741069843093,-500.0,0.00012583,2]
[355342569,1741069843102,-1051.77,0.00012583,2]
[355342571,1741069843112,-500.0,0.00012583,2]
[355342573,1741069843121,-500.0,0.00012583,2]
[355342575,1741069843132,-500.0,0.00012583,2]
[355342577,1741069843141,-873.07,0.00012583,2]
[355342579,1741069843151,-508.4498912,0.00012583,2]
[355342581,1741069843160,-500.0,0.00012583,2]
[355342583,1741069843171,-500.0,0.00012583,2]
[355342585,1741069843180,-500.0,0.00012583,2]
[355342587,1741069843189,-500.0,0.00012583,2]
[355342589,1741069843198,-500.0,0.00012583,2]
[355342591,1741069843207,-500.0,0.00012583,2]
[355342593,1741069843216,-500.0,0.00012583,2]
[355342595,1741069843225,-1380.08,0.00012583,2]
[355342597,1741069843234,-500.0,0.00012583,2]
[355342599,1741069843244,-502.93559593,0.00012583,2]
[355342601,1741069843254,-882.77,0.00012583,2]
[355342603,1741069843263,-500.0,0.00012583,2]
[355342605,1741069843272,-500.0,0.00012583,2]
[355342607,1741069843281,-332.70697929,0.00012583,2]
[355342609,1741069843290,-500.0,0.00012583,2]
[355342611,1741069843299,-500.0,0.00012583,2]
[355342613,1741069843308,-501.49221747,0.00012583,2]
[355342615,1741069843318,-500.0,0.00012583,2]
[355342617,1741069843327,-500.0,0.00012583,2]
[355342619,1741069843336,-213.51045595,0.00012583,2]
[355342621,1741069843346,-500.0,0.00012583,2]
[355342623,1741069843355,-1065.22,0.00012583,2]
[355342625,1741069843364,-500.0,0.00012583,2]
[355342627,1741069843373,-501.31796272,0.00012583,2]
[355342629,1741069843382,-500.0,0.00012583,2]
[355342631,1741069843391,-500.0,0.00012583,2]
[355342633,1741069843400,-1370.57,0.00012583,2]
[355342635,1741069843409,-500.0,0.00012583,2]
[355342637,1741069843419,-500.0,0.00012583,2]
[355342639,1741069843428,-551.84435973,0.00012583,2]
[355342641,1741069843437,-501.36384016,0.00012583,2]
[355342643,1741069843447,-500.0,0.00012583,2]
[355342645,1741069843456,-500.0,0.00012583,2]
[355342648,1741069843466,-500.0,0.00012583,2]
[355342649,1741069843475,-500.0,0.00012583,2]
[355342651,1741069843484,-369.84979319,0.00012583,2]
[355342653,1741069843494,-500.0,0.00012583,2]
[355342655,1741069843503,-500.0,0.00012583,2]
[355342657,1741069843512,-533.85262723,0.00012583,2]
[355342660,1741069843521,-500.0,0.00012583,2]
[355342662,1741069843531,-513.09652697,0.00012583,2]
[355342664,1741069843540,-500.0,0.00012583,2]
[355342666,1741069843549,-500.0,0.00012583,2]
[355342668,1741069843558,-500.0,0.00012583,2]
[355342670,1741069843567,-504.03916961,0.00012583,2]
[355342672,1741069843577,-500.0,0.00012583,2]
[355342674,1741069843586,-503.26169479,0.00012583,2]
[355342675,1741069843596,-500.0,0.00012583,2]
[355342677,1741069843605,-500.0,0.00012583,2]
[355342680,1741069843614,-987.26,0.00012583,2]
[355342681,1741069843623,-500.0,0.00012583,2]
[355342683,1741069843632,-1494.74,0.00012583,2]
[355342686,1741069843642,-500.0,0.00012583,2]
[355342687,1741069843651,-512.25405869,0.00012583,2]
[355342689,1741069843660,-953.33,0.00012583,2]
[355342691,1741069843669,-184.26672978,0.00012583,2]
[355342693,1741069843679,-326.32774715,0.00012583,2]
[355342696,1741069843688,-501.46608816,0.00012583,2]
[355342697,1741069843698,-500.0,0.00012583,2]
[355342699,1741069843707,-500.0,0.00012583,2]
[355342702,1741069843716,-2128.21,0.00012583,2]
[355342703,1741069843725,-500.0,0.00012583,2]
[355342705,1741069843734,-783.93,0.00012583,2]
[355342707,1741069843743,-500.0,0.00012583,2]
[355342709,1741069843752,-500.0,0.00012583,2]
[355342711,1741069843762,-2435.08,0.00012583,2]
[355342713,1741069843771,-500.0,0.00012583,2]
[355342715,1741069843780,-500.0,0.00012583,2]
[355342717,1741069843789,-500.00399997,0.00012583,2]
[355342719,1741069843798,-500.0,0.00012583,2]
[355342721,1741069843808,-2037.58,0.00012583,2]
[355342723,1741069843817,-501.71942783,0.00012583,2]
[355342725,1741069843826,-540.45859347,0.00012583,2]
[355342727,1741069843836,-1712.96,0.00012583,2]
[355342729,1741069843845,-500.0,0.00012583,2]
[355342731,1741069843855,-500.0,0.00012583,2]
[355342733,1741069843864,-500.0,0.00012583,2]
[355342735,1741069843873,-500.0,0.00012583,2]